[Event "Elitserien 2022/2023"]
[Site "Elite Hotel Marina Plaza, Kungstorget 6, Helsingborg, Sweden"]
[Date "2022.10.16"]
[Round "3.4"]
[White "Von Bahr, Oskar"]
[Black "Pantzar, Milton"]
[Result "0-1"]
[TimeControl "90 minutes for 40 moves + 30 minutes for the rest of the game + 30 seconds per move from move one."]
[WhiteTitle "IM"]
[BlackTitle "IM"]
[WhiteFideId "1703250"]
[BlackFideId "1721003"]
[WhiteElo "2381"]
[BlackElo "2465"]

1. e4 {[%clk 01:30:51]} {[%emt 00:00:08]} c6 {[%clk 01:30:40]} {[%emt
00:00:21]} 2. d4 {[%clk 01:30:59]} {[%emt 00:00:21]} d5 {[%clk 01:31:04]}
{[%emt 00:00:07]} 3. e5 {[%clk 01:30:58]} {[%emt 00:00:30]} Bf5 {[%clk
01:31:22]} {[%emt 00:00:12]} 4. h4 {[%clk 01:30:33]} {[%emt 00:00:54]} h5
{[%clk 01:31:42]} {[%emt 00:00:10]} 5. Bd3 {[%clk 01:30:37]} {[%emt 00:00:27]}
Bxd3 {[%clk 01:31:24]} {[%emt 00:00:49]} 6. Qxd3 {[%clk 01:31:00]} {[%emt
00:00:07]} Qa5+ {[%clk 01:31:02]} {[%emt 00:00:52]} 7. Nd2 {[%clk 01:30:32]}
{[%emt 00:00:57]} e6 {[%clk 01:30:23]} {[%emt 00:01:10]} 8. Ngf3 {[%clk
01:28:29]} {[%emt 00:02:33]} Nh6 {[%clk 01:27:25]} {[%emt 00:03:27]} 9. O-O
{[%clk 01:28:40]} {[%emt 00:00:19]} Nf5 {[%clk 01:27:35]} {[%emt 00:00:22]} 10.
Nb3 {[%clk 01:27:20]} {[%emt 00:01:49]} Qa6 {[%clk 01:24:57]} {[%emt 00:03:08]}
11. Qd1 {[%clk 01:27:09]} {[%emt 00:00:40]} Nd7 {[%clk 01:20:31]} {[%emt
00:04:57]} 12. Bg5 {[%clk 01:23:46]} {[%emt 00:03:52]} c5 {[%clk 01:11:38]}
{[%emt 00:09:24]} 13. dxc5 {[%clk 01:20:36]} {[%emt 00:03:39]} Nxc5 {[%clk
01:10:45]} {[%emt 00:01:24]} 14. Nfd4 {[%clk 01:14:56]} {[%emt 00:06:10]} Nxd4
{[%clk 01:07:46]} {[%emt 00:03:28]} 15. Nxd4 {[%clk 01:15:02]} {[%emt
00:00:25]} Ne4 {[%clk 01:06:56]} {[%emt 00:01:20]} 16. a4 {[%clk 01:10:35]}
{[%emt 00:04:57]} Nxg5 {[%clk 01:01:04]} {[%emt 00:06:22]} 17. hxg5 {[%clk
01:09:12]} {[%emt 00:01:52]} g6 {[%clk 01:00:29]} {[%emt 00:01:06]} 18. Nb5
{[%clk 01:02:11]} {[%emt 00:07:31]} Qb6 {[%clk 00:47:24]} {[%emt 00:13:35]} 19.
b3 {[%clk 00:42:02]} {[%emt 00:20:38]} a6 {[%clk 00:44:10]} {[%emt 00:03:44]}
20. Nd4 {[%clk 00:42:13]} {[%emt 00:00:20]} Rc8 {[%clk 00:40:42]} {[%emt
00:03:58]} 21. a5 {[%clk 00:23:10]} {[%emt 00:19:33]} Qc7 {[%clk 00:37:21]}
{[%emt 00:03:51]} 22. c4 {[%clk 00:23:31]} {[%emt 00:00:09]} dxc4 {[%clk
00:36:21]} {[%emt 00:01:30]} 23. bxc4 {[%clk 00:23:15]} {[%emt 00:00:45]} Be7
{[%clk 00:32:11]} {[%emt 00:04:41]} 24. Qa4+ {[%clk 00:20:12]} {[%emt
00:03:33]} Kf8 {[%clk 00:30:12]} {[%emt 00:02:29]} 25. Nf3 {[%clk 00:17:35]}
{[%emt 00:03:08]} Kg7 {[%clk 00:25:23]} {[%emt 00:05:18]} 26. Rab1 {[%clk
00:15:14]} {[%emt 00:02:51]} Rhd8 {[%clk 00:24:42]} {[%emt 00:01:11]} 27. Rb3
{[%clk 00:13:38]} {[%emt 00:02:05]} Qxc4 {[%clk 00:20:28]} {[%emt 00:04:44]} 28.
Qxc4 {[%clk 00:13:56]} {[%emt 00:00:12]} Rxc4 {[%clk 00:20:56]} {[%emt
00:00:03]} 29. Rxb7 {[%clk 00:14:14]} {[%emt 00:00:12]} Bc5 {[%clk 00:21:06]}
{[%emt 00:00:20]} 30. Rb2 {[%clk 00:04:48]} {[%emt 00:09:56]} Ra4 {[%clk
00:16:33]} {[%emt 00:05:03]} 31. Rc1 {[%clk 00:04:32]} {[%emt 00:00:46]} Rxa5
{[%clk 00:15:45]} {[%emt 00:01:18]} 32. Rcc2 {[%clk 00:04:13]} {[%emt
00:00:48]} Rd5 {[%clk 00:09:16]} {[%emt 00:07:00]} 33. Ra2 {[%clk 00:02:51]}
{[%emt 00:01:52]} Rxa2 {[%clk 00:08:29]} {[%emt 00:01:17]} 34. Rxa2 {[%clk
00:03:17]} {[%emt 00:00:04]} a5 {[%clk 00:08:47]} {[%emt 00:00:11]} 35. Kf1
{[%clk 00:02:53]} {[%emt 00:00:54]} Bb4 {[%clk 00:07:48]} {[%emt 00:01:30]} 36.
Ra4 {[%clk 00:02:04]} {[%emt 00:01:20]} Kf8 {[%clk 00:03:41]} {[%emt 00:04:37]}
37. Ke2 {[%clk 00:02:19]} {[%emt 00:00:15]} Ke7 {[%clk 00:03:42]} {[%emt
00:00:30]} 38. Ke3 {[%clk 00:02:23]} {[%emt 00:00:25]} Rc5 {[%clk 00:03:24]}
{[%emt 00:00:48]} 39. Ra2 {[%clk 00:02:06]} {[%emt 00:00:46]} Kd7 {[%clk
00:02:55]} {[%emt 00:01:00]} 40. Ke4 {[%clk 00:01:46]} {[%emt 00:00:50]} Rc4+
{[%clk 00:01:52]} {[%emt 00:01:33]} 41. Kd3 {[%clk 00:30:15]} {[%emt 00:02:01]}
Rc3+ {[%clk 00:29:13]} {[%emt 00:03:09]} 42. Kd4 {[%clk 00:27:11]} {[%emt
00:03:34]} Rc1 {[%clk 00:25:33]} {[%emt 00:04:10]} 43. Ke4 {[%clk 00:24:04]}
{[%emt 00:03:37]} Kc6 {[%clk 00:21:45]} {[%emt 00:04:17]} 44. Nd4+ {[%clk
00:24:15]} {[%emt 00:00:19]} Kb6 {[%clk 00:22:03]} {[%emt 00:00:11]} 45. f4
{[%clk 00:21:54]} {[%emt 00:02:53]} Rc4 {[%clk 00:20:35]} {[%emt 00:01:58]} 46.
Kd3 {[%clk 00:18:49]} {[%emt 00:03:35]} Rc3+ {[%clk 00:20:42]} {[%emt
00:00:22]} 47. Ke2 {[%clk 00:18:54]} {[%emt 00:00:24]} Rg3 {[%clk 00:18:08]}
{[%emt 00:03:05]} 48. Kf2 {[%clk 00:17:37]} {[%emt 00:01:47]} Rd3 {[%clk
00:17:55]} {[%emt 00:00:43]} 49. Ne2 {[%clk 00:11:51]} {[%emt 00:06:16]} Kb5
{[%clk 00:12:45]} {[%emt 00:05:41]} 50. Rc2 {[%clk 00:09:03]} {[%emt 00:03:17]}
a4 {[%clk 00:12:01]} {[%emt 00:01:14]} 51. Rc7 {[%clk 00:08:32]} {[%emt
00:01:02]} a3 {[%clk 00:11:46]} {[%emt 00:00:45]} 52. Nc1 {[%clk 00:04:36]}
{[%emt 00:04:26]} Rc3 {[%clk 00:10:38]} {[%emt 00:01:37]} 53. Rb7+ {[%clk
00:04:14]} {[%emt 00:00:53]} Kc4 {[%clk 00:10:50]} {[%emt 00:00:18]} 54. Ne2
{[%clk 00:03:23]} {[%emt 00:01:20]} Bc5+ {[%clk 00:10:22]} {[%emt 00:00:58]}
0-1

[Event "Elitserien 2022/2023"]
[Site "Elite Hotel Marina Plaza, Kungstorget 6, Helsingborg, Sweden"]
[Date "2022.10.16"]
[Round "3.14"]
[White "Jaderberg, Bjorn"]
[Black "Tuomainen, Felix"]
[Result "0-1"]
[TimeControl "90 minutes for 40 moves + 30 minutes for the rest of the game + 30 seconds per move from move one."]
[BlackTitle "FM"]
[WhiteFideId "1712403"]
[BlackFideId "1720813"]
[WhiteElo "2147"]
[BlackElo "2230"]

1. e4 {[%clk 01:30:56]} {[%emt 00:00:04]} c5 {[%clk 01:27:06]} {[%emt
00:03:55]} 2. Nf3 {[%clk 01:31:14]} {[%emt 00:00:11]} d6 {[%clk 01:27:26]}
{[%emt 00:00:10]} 3. Bb5+ {[%clk 01:31:31]} {[%emt 00:00:13]} Nd7 {[%clk
01:26:35]} {[%emt 00:01:21]} 4. c3 {[%clk 01:31:39]} {[%emt 00:00:22]} Ngf6
{[%clk 01:25:45]} {[%emt 00:01:21]} 5. Qe2 {[%clk 01:31:56]} {[%emt 00:00:12]}
a6 {[%clk 01:25:36]} {[%emt 00:00:40]} 6. Ba4 {[%clk 01:32:16]} {[%emt
00:00:09]} b5 {[%clk 01:25:15]} {[%emt 00:00:52]} 7. Bc2 {[%clk 01:32:36]}
{[%emt 00:00:09]} Bb7 {[%clk 01:25:36]} {[%emt 00:00:10]} 8. O-O {[%clk
01:32:40]} {[%emt 00:00:26]} e6 {[%clk 01:23:38]} {[%emt 00:02:27]} 9. d4
{[%clk 01:32:20]} {[%emt 00:00:51]} Be7 {[%clk 01:23:00]} {[%emt 00:01:08]} 10.
h3 {[%clk 01:30:26]} {[%emt 00:02:23]} O-O {[%clk 01:22:22]} {[%emt 00:01:09]}
11. Rd1 {[%clk 01:26:26]} {[%emt 00:04:30]} Qc7 {[%clk 01:13:20]} {[%emt
00:09:32]} 12. Bg5 {[%clk 01:26:17]} {[%emt 00:00:38]} Rfc8 {[%clk 01:09:51]}
{[%emt 00:03:59]} 13. Bd3 {[%clk 01:19:35]} {[%emt 00:07:12]} Nf8 {[%clk
01:03:54]} {[%emt 00:06:27]} 14. Nbd2 {[%clk 01:17:29]} {[%emt 00:02:36]} Ng6
{[%clk 01:00:35]} {[%emt 00:03:50]} 15. Qe3 {[%clk 01:12:46]} {[%emt 00:05:12]}
b4 {[%clk 00:55:05]} {[%emt 00:06:01]} 16. dxc5 {[%clk 01:03:49]} {[%emt
00:09:27]} dxc5 {[%clk 00:54:13]} {[%emt 00:01:22]} 17. Nc4 {[%clk 01:03:40]}
{[%emt 00:00:38]} a5 {[%clk 00:49:11]} {[%emt 00:05:33]} 18. Rac1 {[%clk
01:00:32]} {[%emt 00:03:36]} e5 {[%clk 00:45:16]} {[%emt 00:04:26]} 19. g3
{[%clk 00:49:50]} {[%emt 00:11:11]} Rd8 {[%clk 00:43:49]} {[%emt 00:01:58]} 20.
Bxf6 {[%clk 00:50:03]} {[%emt 00:00:17]} Bxf6 {[%clk 00:44:11]} {[%emt
00:00:08]} 21. Qe2 {[%clk 00:44:30]} {[%emt 00:06:03]} Ne7 {[%clk 00:39:45]}
{[%emt 00:04:56]} 22. Ne3 {[%clk 00:43:57]} {[%emt 00:01:02]} Qc6 {[%clk
00:39:28]} {[%emt 00:00:43]} 23. c4 {[%clk 00:43:35]} {[%emt 00:00:56]} Qe6
{[%clk 00:35:26]} {[%emt 00:04:31]} 24. Kg2 {[%clk 00:43:22]} {[%emt 00:00:44]}
Bc8 {[%clk 00:32:44]} {[%emt 00:03:13]} 25. Rh1 {[%clk 00:43:29]} {[%emt
00:00:21]} Rb8 {[%clk 00:32:11]} {[%emt 00:01:03]} 26. Nd5 {[%clk 00:43:20]}
{[%emt 00:00:41]} b3 {[%clk 00:30:55]} {[%emt 00:01:46]} 27. Ra1 {[%clk
00:38:54]} {[%emt 00:04:55]} bxa2 {[%clk 00:21:07]} {[%emt 00:10:19]} 28. Rxa2
{[%clk 00:39:10]} {[%emt 00:00:13]} Nc6 {[%clk 00:21:24]} {[%emt 00:00:14]} 29.
Qd2 {[%clk 00:32:00]} {[%emt 00:07:39]} h6 {[%clk 00:19:58]} {[%emt 00:01:56]}
30. Ra3 {[%clk 00:27:30]} {[%emt 00:04:59]} Rd7 {[%clk 00:19:48]} {[%emt
00:00:39]} 31. h4 {[%clk 00:22:18]} {[%emt 00:05:44]} Rdb7 {[%clk 00:20:00]}
{[%emt 00:00:17]} 32. Rb1 {[%clk 00:22:24]} {[%emt 00:00:25]} Bd8 {[%clk
00:19:33]} {[%emt 00:00:55]} 33. b3 {[%clk 00:19:21]} {[%emt 00:03:34]} Qg6
{[%clk 00:18:14]} {[%emt 00:01:47]} 34. Qe3 {[%clk 00:18:07]} {[%emt 00:01:47]}
Bg4 {[%clk 00:15:11]} {[%emt 00:03:31]} 35. Be2 {[%clk 00:11:18]} {[%emt
00:07:20]} Bxf3+ {[%clk 00:13:25]} {[%emt 00:02:18]} 36. Bxf3 {[%clk 00:11:35]}
{[%emt 00:00:12]} Nd4 {[%clk 00:13:32]} {[%emt 00:00:24]} 37. Bd1 {[%clk
00:10:46]} {[%emt 00:01:18]} f5 {[%clk 00:12:46]} {[%emt 00:01:16]} 38. exf5
{[%clk 00:10:04]} {[%emt 00:01:12]} Nxf5 {[%clk 00:12:51]} {[%emt 00:00:25]} 39.
Qc1 {[%clk 00:08:47]} {[%emt 00:01:47]} Nxh4+ {[%clk 00:12:22]} {[%emt
00:01:00]} 40. Kh2 {[%clk 00:03:17]} {[%emt 00:05:59]} Rf7 {[%clk 00:08:15]}
{[%emt 00:04:36]} 41. Rb2 {[%clk 00:02:29]} {[%emt 00:01:20]} Nf3+ {[%clk
00:06:04]} {[%emt 00:02:40]} 42. Bxf3 {[%clk 00:01:59]} {[%emt 00:01:01]} Rxf3
{[%clk 00:06:32]} {[%emt 00:00:02]} 43. Qe1 {[%clk 00:30:03]} {[%emt 00:02:24]}
Rf5 {[%clk 00:32:38]} {[%emt 00:04:17]} 44. Re2 {[%clk 00:29:35]} {[%emt
00:01:05]} Rh5+ {[%clk 00:31:58]} {[%emt 00:01:10]} 45. Kg1 {[%clk 00:28:24]}
{[%emt 00:01:41]} Bf6 {[%clk 00:26:54]} {[%emt 00:05:30]} 46. Re3 {[%clk
00:21:49]} {[%emt 00:07:09]} Qf5 {[%clk 00:25:18]} {[%emt 00:02:02]} 47. Qf1
{[%clk 00:22:04]} {[%emt 00:00:19]} Bg5 {[%clk 00:23:41]} {[%emt 00:02:05]} 48.
Rxa5 {[%clk 00:20:03]} {[%emt 00:02:34]} Kh8 {[%clk 00:23:53]} {[%emt
00:00:18]} 49. f4 {[%clk 00:09:11]} {[%emt 00:11:22]} exf4 {[%clk 00:22:19]}
{[%emt 00:02:04]} 50. Rf3 {[%clk 00:09:27]} {[%emt 00:00:14]} Qg4 {[%clk
00:18:21]} {[%emt 00:04:25]} 51. Ra7 {[%clk 00:09:10]} {[%emt 00:00:50]} Rh3
{[%clk 00:18:21]} {[%emt 00:00:26]} 52. Qf2 {[%clk 00:05:48]} {[%emt 00:03:56]}
Rxg3+ {[%clk 00:17:26]} {[%emt 00:01:25]} 53. Rxg3 {[%clk 00:06:09]} {[%emt
00:00:09]} fxg3 {[%clk 00:17:23]} {[%emt 00:00:33]} 54. Qb2 {[%clk 00:03:51]}
{[%emt 00:02:48]} Bh4 {[%clk 00:15:57]} {[%emt 00:01:55]} 55. Ne3 {[%clk
00:01:38]} {[%emt 00:02:45]} Qg6 {[%clk 00:15:54]} {[%emt 00:00:25]} 0-1

[Event "Elitserien 2022/2023"]
[Site "Elite Hotel Marina Plaza, Kungstorget 6, Helsingborg, Sweden"]
[Date "2022.10.16"]
[Round "3.17"]
[White "Jepson, Christian"]
[Black "Amin, Bassem"]
[Result "0-1"]
[TimeControl "90 minutes for 40 moves + 30 minutes for the rest of the game + 30 seconds per move from move one."]
[WhiteTitle "IM"]
[BlackTitle "GM"]
[WhiteFideId "1701185"]
[BlackFideId "10601457"]
[WhiteElo "2401"]
[BlackElo "2663"]

1. Nf3 {[%clk 01:27:55]} {[%emt 00:03:04]} Nf6 {[%clk 01:22:47]} {[%emt
00:08:13]} 2. c4 {[%clk 01:28:15]} {[%emt 00:00:10]} g6 {[%clk 01:23:13]}
{[%emt 00:00:04]} 3. Nc3 {[%clk 01:28:24]} {[%emt 00:00:21]} Bg7 {[%clk
01:23:36]} {[%emt 00:00:07]} 4. d4 {[%clk 01:28:48]} {[%emt 00:00:06]} O-O
{[%clk 01:23:55]} {[%emt 00:00:11]} 5. e4 {[%clk 01:29:10]} {[%emt 00:00:08]}
d6 {[%clk 01:24:20]} {[%emt 00:00:05]} 6. Be2 {[%clk 01:29:33]} {[%emt
00:00:07]} e5 {[%clk 01:24:46]} {[%emt 00:00:04]} 7. Be3 {[%clk 01:28:35]}
{[%emt 00:01:27]} Ng4 {[%clk 01:22:54]} {[%emt 00:02:25]} 8. Bg5 {[%clk
01:28:38]} {[%emt 00:00:26]} f6 {[%clk 01:23:16]} {[%emt 00:00:08]} 9. Bh4
{[%clk 01:28:58]} {[%emt 00:00:10]} Nc6 {[%clk 01:23:41]} {[%emt 00:00:04]} 10.
d5 {[%clk 01:28:24]} {[%emt 00:01:04]} Ne7 {[%clk 01:24:04]} {[%emt 00:00:08]}
11. Nd2 {[%clk 01:28:20]} {[%emt 00:00:33]} f5 {[%clk 01:23:40]} {[%emt
00:00:54]} 12. Bxg4 {[%clk 01:27:19]} {[%emt 00:01:32]} fxg4 {[%clk 01:24:01]}
{[%emt 00:00:09]} 13. Bg5 {[%clk 01:26:30]} {[%emt 00:01:18]} h6 {[%clk
01:21:24]} {[%emt 00:03:08]} 14. Be3 {[%clk 01:26:48]} {[%emt 00:00:12]} c5
{[%clk 01:21:43]} {[%emt 00:00:11]} 15. Rb1 {[%clk 01:23:27]} {[%emt 00:03:50]}
b6 {[%clk 01:14:11]} {[%emt 00:08:03]} 16. b4 {[%clk 01:22:25]} {[%emt
00:01:31]} g5 {[%clk 00:56:24]} {[%emt 00:18:17]} 17. bxc5 {[%clk 01:22:30]}
{[%emt 00:00:25]} bxc5 {[%clk 00:55:51]} {[%emt 00:01:04]} 18. Nf1 {[%clk
01:16:36]} {[%emt 00:06:24]} Ng6 {[%clk 00:49:21]} {[%emt 00:07:00]} 19. Bc1
{[%clk 01:14:43]} {[%emt 00:02:23]} Qa5 {[%clk 00:43:00]} {[%emt 00:06:50]} 20.
Rb3 {[%clk 01:11:55]} {[%emt 00:03:18]} Bd7 {[%clk 00:34:57]} {[%emt 00:08:33]}
21. Ne3 {[%clk 01:09:35]} {[%emt 00:02:51]} h5 {[%clk 00:23:04]} {[%emt
00:12:23]} 22. O-O {[%clk 01:05:53]} {[%emt 00:04:11]} Rf4 {[%clk 00:23:02]}
{[%emt 00:00:33]} 23. Qc2 {[%clk 00:54:33]} {[%emt 00:11:50]} Rf6 {[%clk
00:17:38]} {[%emt 00:05:53]} 24. Nf5 {[%clk 00:40:03]} {[%emt 00:15:01]} Nf4
{[%clk 00:15:14]} {[%emt 00:02:54]} 25. Bxf4 {[%clk 00:16:40]} {[%emt
00:23:53]} gxf4 {[%clk 00:12:38]} {[%emt 00:03:07]} 26. Rb7 {[%clk 00:14:34]}
{[%emt 00:02:34]} Qd8 {[%clk 00:05:45]} {[%emt 00:07:23]} 27. Nxg7 {[%clk
00:06:30]} {[%emt 00:08:35]} Kxg7 {[%clk 00:06:07]} {[%emt 00:00:08]} 28. Qa4
{[%clk 00:05:51]} {[%emt 00:01:08]} Rf7 {[%clk 00:06:30]} {[%emt 00:00:07]} 29.
Qa6 {[%clk 00:06:09]} {[%emt 00:00:11]} Qf6 {[%clk 00:03:41]} {[%emt 00:03:20]}
30. Nb5 {[%clk 00:05:55]} {[%emt 00:00:44]} Bxb5 {[%clk 00:03:51]} {[%emt
00:00:20]} 31. cxb5 {[%clk 00:05:09]} {[%emt 00:01:16]} Raf8 {[%clk 00:03:46]}
{[%emt 00:00:35]} 32. Rxa7 {[%clk 00:03:49]} {[%emt 00:01:50]} f3 {[%clk
00:03:57]} {[%emt 00:00:20]} 33. g3 {[%clk 00:01:24]} {[%emt 00:02:55]} h4
{[%clk 00:04:26]} {[%emt 00:00:01]} 34. Rxf7+ {[%clk 00:01:26]} {[%emt
00:00:28]} Rxf7 {[%clk 00:04:54]} 35. Qc8 {[%clk 00:01:32]} {[%emt 00:00:24]}
Qg6 {[%clk 00:05:22]} {[%emt 00:00:02]} 36. b6 {[%clk 00:01:08]} {[%emt
00:00:54]} hxg3 {[%clk 00:05:41]} {[%emt 00:00:12]} 37. b7 {[%clk 00:01:08]}
{[%emt 00:00:30]} gxh2+ {[%clk 00:06:01]} {[%emt 00:00:09]} 38. Kh1 {[%clk
00:00:44]} {[%emt 00:00:54]} g3 {[%clk 00:06:25]} {[%emt 00:00:07]} 39. b8=Q
{[%clk 00:01:06]} {[%emt 00:00:09]} g2+ {[%clk 00:06:46]} {[%emt 00:00:08]} 40.
Kxh2 {[%clk 00:01:33]} {[%emt 00:00:03]} gxf1=N+ {[%clk 00:05:55]} {[%emt
00:01:21]} 41. Kh3 {[%clk 00:01:40]} {[%emt 00:00:23]} Qh5# {[%clk 00:06:10]}
{[%emt 00:00:13]} 0-1

[Event "Elitserien 2022/2023"]
[Site "Elite Hotel Marina Plaza, Kungstorget 6, Helsingborg, Sweden"]
[Date "2022.10.16"]
[Round "3.27"]
[White "Vernersson, Per"]
[Black "Barkhagen, Jonas"]
[Result "0-1"]
[TimeControl "90 minutes for 40 moves + 30 minutes for the rest of the game + 30 seconds per move from move one."]
[BlackTitle "IM"]
[WhiteFideId "1700863"]
[BlackFideId "1700855"]
[WhiteElo "2264"]
[BlackElo "2424"]

1. d4 {[%clk 01:30:56]} {[%emt 00:00:03]} Nf6 {[%clk 01:30:30]} {[%emt
00:00:30]} 2. c4 {[%clk 01:31:19]} {[%emt 00:00:07]} e6 {[%clk 01:30:53]}
{[%emt 00:00:07]} 3. g3 {[%clk 01:31:09]} {[%emt 00:00:40]} d5 {[%clk
01:31:08]} {[%emt 00:00:16]} 4. Nf3 {[%clk 01:31:24]} {[%emt 00:00:15]} dxc4
{[%clk 01:31:08]} {[%emt 00:00:29]} 5. Qa4+ {[%clk 01:31:26]} {[%emt 00:00:29]}
Nbd7 {[%clk 01:30:28]} {[%emt 00:01:10]} 6. Bg2 {[%clk 01:31:32]} {[%emt
00:00:24]} a6 {[%clk 01:30:51]} {[%emt 00:00:06]} 7. Qxc4 {[%clk 01:31:43]}
{[%emt 00:00:19]} b5 {[%clk 01:30:56]} {[%emt 00:00:25]} 8. Qc2 {[%clk
01:27:40]} {[%emt 00:04:34]} Bb7 {[%clk 01:31:11]} {[%emt 00:00:14]} 9. O-O
{[%clk 01:27:03]} {[%emt 00:01:08]} c5 {[%clk 01:30:53]} {[%emt 00:00:47]} 10.
a4 {[%clk 01:23:52]} {[%emt 00:03:41]} b4 {[%clk 01:28:30]} {[%emt 00:02:52]}
11. Bg5 {[%clk 01:20:20]} {[%emt 00:04:03]} Rc8 {[%clk 01:25:38]} {[%emt
00:03:22]} 12. dxc5 {[%clk 01:20:14]} {[%emt 00:00:37]} Bxc5 {[%clk 01:22:33]}
{[%emt 00:03:35]} 13. Qd3 {[%clk 01:18:22]} {[%emt 00:02:22]} Be7 {[%clk
01:10:42]} {[%emt 00:12:20]} 14. Nbd2 {[%clk 01:13:27]} {[%emt 00:05:25]} O-O
{[%clk 01:08:13]} {[%emt 00:02:59]} 15. Nb3 {[%clk 01:06:38]} {[%emt 00:07:19]}
Nb6 {[%clk 01:04:33]} {[%emt 00:04:09]} 16. Ne5 {[%clk 01:02:56]} {[%emt
00:04:14]} Bxg2 {[%clk 01:01:53]} {[%emt 00:03:10]} 17. Kxg2 {[%clk 01:01:45]}
{[%emt 00:01:41]} Qc7 {[%clk 00:55:08]} {[%emt 00:07:14]} 18. Nf3 {[%clk
00:54:48]} {[%emt 00:07:26]} Qb7 {[%clk 00:49:02]} {[%emt 00:06:36]} 19. Nbd2
{[%clk 00:46:55]} {[%emt 00:08:24]} h6 {[%clk 00:40:57]} {[%emt 00:08:36]} 20.
Be3 {[%clk 00:38:02]} {[%emt 00:09:22]} Rfd8 {[%clk 00:37:32]} {[%emt
00:03:54]} 21. Qb3 {[%clk 00:37:54]} {[%emt 00:00:39]} Nbd5 {[%clk 00:35:00]}
{[%emt 00:03:02]} 22. Rac1 {[%clk 00:34:16]} {[%emt 00:04:09]} Nxe3+ {[%clk
00:33:58]} {[%emt 00:01:32]} 23. Qxe3 {[%clk 00:34:35]} {[%emt 00:00:10]} Bc5
{[%clk 00:34:23]} {[%emt 00:00:04]} 24. Rxc5 {[%clk 00:29:44]} {[%emt
00:05:22]} Rxc5 {[%clk 00:34:12]} {[%emt 00:00:42]} 25. Qxc5 {[%clk 00:30:09]}
{[%emt 00:00:04]} Rxd2 {[%clk 00:34:33]} {[%emt 00:00:09]} 26. Qe5 {[%clk
00:22:34]} {[%emt 00:08:05]} Nd7 {[%clk 00:33:54]} {[%emt 00:01:09]} 27. Qe3
{[%clk 00:21:45]} {[%emt 00:01:19]} Rxb2 {[%clk 00:33:00]} {[%emt 00:01:25]} 28.
Rd1 {[%clk 00:21:08]} {[%emt 00:01:06]} Nf6 {[%clk 00:31:57]} {[%emt 00:01:33]}
29. Rd8+ {[%clk 00:18:09]} {[%emt 00:03:29]} Kh7 {[%clk 00:31:57]} {[%emt
00:00:31]} 30. Qd3+ {[%clk 00:18:01]} {[%emt 00:00:38]} Qe4 {[%clk 00:31:59]}
{[%emt 00:00:26]} 31. Qxa6 {[%clk 00:18:19]} {[%emt 00:00:13]} Rxe2 {[%clk
00:28:17]} {[%emt 00:04:12]} 32. Qa8 {[%clk 00:07:00]} {[%emt 00:11:49]} Qxa8
{[%clk 00:22:54]} {[%emt 00:05:52]} 33. Rxa8 {[%clk 00:07:22]} {[%emt
00:00:09]} Ne4 {[%clk 00:23:20]} {[%emt 00:00:04]} 0-1